bitfinex/quotes_SOLUSD_20250508
["timestamp","ask_amount","ask_price","bid_price","bid_amount"]
[1746709550599,4.39843115,154.9,154.86,26.0]
[1746709550816,4.39843115,154.9,154.89,14.99506302]
[1746709551004,10.85420907,154.9,154.89,14.99506302]
[1746709551613,6.45577792,154.9,154.89,14.99506302]
[1746709552308,4.41222707,154.9,154.89,40.99506302]
[1746709552499,10.86800499,154.9,154.89,40.99506302]
[1746709552689,10.86800499,154.9,154.89,26.0]
[1746709552889,10.86800499,154.9,154.89,40.99506302]
[1746709553296,10.86800499,154.9,154.89,14.99506302]
[1746709553496,10.86800499,154.9,154.88,14.99506302]
[1746709554012,4.41222707,154.89,154.88,14.99506302]
[1746709555305,10.86842178,154.89,154.88,14.99506302]
[1746709556812,10.86842178,154.89,154.85,26.0]
[1746709557019,42.00397159,154.89,154.85,40.99506302]
[1746709557509,4.41222707,154.88,154.85,14.99506302]
[1746709558193,4.41222707,154.88,154.84,14.99506302]
[1746709558416,4.41222707,154.87,154.84,40.99506302]
[1746709558600,4.41222707,154.87,154.85,14.99506302]
[1746709558919,4.41222707,154.87,154.84,14.99506302]
[1746709559128,4.41222707,154.87,154.84,26.0]
[1746709559418,6.45786244,154.85,154.84,26.0]
[1746709560001,10.87008951,154.85,154.84,26.0]
[1746709560326,10.87008951,154.85,154.84,40.99506302]
[1746709563215,4.41222707,154.85,154.84,40.99506302]
[1746709564016,10.87008951,154.85,154.84,40.99506302]
[1746709564229,4.41222707,154.85,154.84,40.99506302]
[1746709564804,1.5103,154.92,154.84,116.10299139]
[1746709565006,6.45494448,154.92,154.91,14.99506302]
[1746709565206,6.56494448,154.92,154.91,14.99506302]
[1746709566135,0.11,154.92,154.91,14.99506302]
[1746709566620,6.45460374,154.93,154.91,14.99506302]
[1746709566823,6.45460374,154.93,154.92,14.99506302]
[1746709567201,22.58647392,154.96,154.92,14.99506302]
[1746709567822,22.58647392,154.96,154.93,14.99506302]
[1746709570203,22.58647392,154.96,154.94,14.99506302]
[1746709570829,6.45327826,154.96,154.95,14.99506302]
[1746709571510,22.58292625,154.99,154.95,14.99506302]
[1746709571904,22.58292625,154.99,154.96,14.99506302]
[1746709572105,0.11,154.97,154.96,14.99506302]
[1746709572717,6.56286184,154.97,154.96,14.99506302]
[1746709572933,6.45286184,154.97,154.96,14.99506302]
[1746709573412,6.45286184,154.97,154.95,14.99506302]
[1746709575031,37.57798927,154.99,154.95,14.99506302]
[1746709575231,37.57798927,154.99,154.89,14.99506302]
[1746709575232,14.99506302,154.98,154.89,14.99506302]
[1746709575521,14.99506302,154.98,154.86,50.0]
[1746709575522,14.99506302,154.95,154.86,50.0]
[1746709575730,14.99506302,154.95,154.9,14.99506302]
[1746709576935,4.51644268,154.94,154.9,14.99506302]
[1746709577235,6.45452785,154.93,154.9,14.99506302]
[1746709577736,6.45452785,154.93,154.87,26.0]
[1746709577921,22.59084747,154.93,154.89,14.99506302]
[1746709578121,4.51644268,154.92,154.89,14.99506302]
[1746709579015,10.97180385,154.91,154.89,14.99506302]
[1746709579234,10.97180385,154.91,154.87,26.0]
[1746709579439,27.11020679,154.91,154.89,14.99506302]
[1746709580918,4.51644268,154.9,154.89,14.99506302]
[1746709581420,4.51644268,154.9,154.89,29.99012604]
[1746709582933,4.51644268,154.9,154.89,14.99506302]
[1746709583542,6.45471135,154.93,154.89,14.99506302]
[1746709583739,6.45471135,154.93,154.92,14.99506302]
[1746709584844,10.97679009,154.93,154.92,14.99506302]
[1746709585347,10.97679009,154.93,154.87,64.75]
[1746709585646,10.97679009,154.93,154.9,14.99506302]
[1746709585854,27.11310971,154.93,154.89,14.99506302]
[1746709586226,27.11310971,154.93,154.9,14.99506302]
[1746709586436,4.52207874,154.92,154.9,14.99506302]
[1746709587142,4.52207874,154.92,154.89,14.99506302]
[1746709587441,6.45577792,154.9,154.89,14.99506302]
[1746709588263,6.45577792,154.9,154.87,26.0]
[1746709588415,22.59522272,154.9,154.88,14.99506302]
[1746709588739,22.59522272,154.9,154.87,14.99506302]
[1746709588947,4.52207874,154.89,154.87,14.99506302]
[1746709589314,6.45661157,154.88,154.87,14.99506302]
[1746709589544,22.59814049,154.88,154.82,88.75]
[1746709589730,22.59814049,154.88,154.85,14.99506302]
[1746709589939,4.52207874,154.87,154.85,14.99506302]
[1746709590127,4.52207874,154.87,154.84,14.99506302]
[1746709590948,4.52207874,154.86,154.85,14.99506302]
[1746709591441,10.97952417,154.86,154.85,14.99506302]
[1746709593034,10.97952417,154.86,154.84,14.99506302]
[1746709593853,10.97952417,154.86,154.85,14.99506302]
[1746709595850,27.12313775,154.86,154.81,26.0]
[1746709596060,27.12313775,154.86,154.82,40.99506302]
[1746709596257,42.11820077,154.86,154.81,14.99506302]
[1746709596440,4.52207874,154.85,154.8,26.0]
[1746709596633,4.52207874,154.85,154.81,14.99506302]
[1746709597443,4.52195105,154.84,154.81,14.99506302]
[1746709598860,6.4591138,154.82,154.81,14.99506302]
[1746709601361,22.60105901,154.86,154.81,14.99506302]
[1746709601550,22.60105901,154.86,154.83,14.99506302]
[1746709601754,4.52057964,154.85,154.83,14.99506302]
[1746709602057,4.52057964,154.85,154.82,14.99506302]
[1746709602255,4.52057964,154.85,154.83,14.99506302]
[1746709602553,6.45744543,154.86,154.84,14.99506302]
[1746709602729,0.11,154.85,154.8,64.99506302]
[1746709602932,0.11,154.85,154.84,14.99506302]
[1746709603133,6.45744543,154.86,154.84,14.99506302]
[1746709603365,6.45744543,154.86,154.85,14.99506302]
[1746709603564,16.14158809,154.88,154.85,14.99506302]
[1746709603867,0.11,154.86,154.85,14.99506302]
[1746709604650,0.11,154.86,154.8,82.8]
[1746709604855,4.52268019,154.85,154.84,14.99506302]
[1746709605559,10.98054263,154.85,154.84,14.99506302]
[1746709607080,10.98054263,154.85,154.8,14.99506302]
[1746709607263,10.98054263,154.85,154.84,14.99506302]
[1746709607443,10.98054263,154.85,154.8,38.75]
[1746709607760,10.98054263,154.85,154.83,14.99506302]
[1746709608058,22.60251855,154.85,154.82,14.99506302]
[1746709608260,22.60251855,154.85,154.79,108.8]
[1746709608452,37.59758157,154.85,154.8,14.99506302]
[1746709609039,4.51837977,154.84,154.8,14.99506302]
[1746709609563,4.51837977,154.84,154.81,14.99506302]
[1746709609861,6.45869663,154.83,154.81,14.99506302]
[1746709610835,6.45869663,154.83,154.76,150.6314]
[1746709611041,6.45869663,154.83,154.8,14.99506302]
[1746709611236,37.60050123,154.83,154.76,1.5514]
[1746709611442,4.52157406,154.82,154.78,14.99506302]
[1746709611859,6.45953103,154.81,154.79,14.99506302]
[1746709612954,6.45953103,154.81,154.8,14.99506302]
[1746709613153,10.97994016,154.81,154.8,14.99506302]
[1746709615660,10.97994016,154.81,154.79,14.99506302]
[1746709615847,10.97994016,154.81,154.78,26.0]
[1746709616043,10.97994016,154.81,154.79,14.99506302]
[1746709616551,10.97994016,154.81,154.8,14.99506302]
[1746709616941,10.97994016,154.81,154.79,14.99506302]
[1746709617271,10.97994016,154.81,154.8,14.99506302]
[1746709618159,16.14674158,154.83,154.8,14.99506302]
[1746709618368,4.52175846,154.82,154.8,14.99506302]
[1746709619483,10.98128949,154.81,154.8,14.99506302]
[1746709620382,10.98128949,154.81,154.78,26.0]
[1746709620566,16.14674158,154.83,154.8,14.99506302]
[1746709621077,6.45827951,154.84,154.81,14.99506302]
[1746709621254,6.45827951,154.84,154.78,26.0]
[1746709621255,4.51478405,154.82,154.78,26.0]
[1746709621954,4.51478405,154.82,154.78,32.46067755]
[1746709622162,6.45827951,154.84,154.78,32.46067755]
[1746709622366,6.45827951,154.84,154.83,14.99506302]
[1746709622567,10.97547403,154.84,154.83,14.99506302]
[1746709622970,4.51719452,154.84,154.83,14.99506302]
[1746709623277,6.0104,154.93,154.84,26.0]
[1746709623482,22.59234417,154.92,154.91,14.99506302]
[1746709623660,6.45494448,154.92,154.91,14.99506302]
[1746709624654,22.58647392,154.96,154.91,14.99506302]
[1746709624879,22.58647392,154.96,154.92,14.99506302]
[1746709626564,22.58647392,154.96,154.94,14.99506302]
[1746709627086,6.45327826,154.96,154.95,14.99506302]
[1746709628059,14.99506302,155.01,154.95,14.99506302]
[1746709628259,14.99506302,155.01,154.97,14.99506302]
[1746709629776,22.58064515,155.0,154.97,14.99506302]
[1746709630581,22.58064515,155.0,154.98,14.99506302]
[1746709630754,22.58064515,155.0,154.99,14.99506302]
[1746709631776,22.57627555,155.03,154.99,14.99506302]
[1746709632277,14.99506302,155.02,154.98,14.99506302]
[1746709633380,22.57627555,155.03,154.99,14.99506302]
[1746709634372,37.57133857,155.03,154.98,14.99506302]
[1746709635387,14.99506302,155.02,154.98,14.99506302]
[1746709635967,14.99506302,155.0,154.92,82.8]
[1746709636169,14.99506302,155.0,154.95,14.99506302]
[1746709636487,14.99506302,155.0,154.96,14.99506302]
[1746709637160,31.12305476,155.01,154.96,14.99506302]
[1746709637363,16.12799174,155.01,154.98,14.99506302]
[1746709637588,4.43103932,155.0,154.98,14.99506302]
[1746709637774,4.43103932,155.0,154.99,14.99506302]
[1746709638890,10.88265222,155.0,154.99,14.99506302]
[1746709639179,6.4516129,155.0,154.99,14.99506302]
[1746709639786,6.4516129,155.0,154.99,23.98118868]
[1746709640587,6.4516129,155.0,154.98,26.0]
[1746709640762,32.25058566,155.04,154.99,23.98118868]
[1746709641086,32.25058566,155.04,155.0,23.98118868]
[1746709642794,32.25058566,155.04,155.01,23.98118868]
[1746709642965,22.57190764,155.06,155.02,23.98118868]
[1746709643300,4.41739672,155.05,154.99,26.0]
[1746709643467,4.41739672,155.05,155.02,23.98118868]
[1746709644399,22.57190764,155.06,155.02,23.98118868]
[1746709645393,22.57190764,155.06,155.03,23.98118868]
[1746709645697,6.44911647,155.06,155.05,23.98118868]
[1746709646575,16.12061342,155.09,155.05,23.98118868]
[1746709646779,16.12061342,155.09,154.99,146.6516724]
[1746709646780,40.1018021,155.09,154.99,190.19964886]
[1746709646982,23.98118868,155.08,155.03,23.98118868]
[1746709647803,23.98118868,155.07,155.02,49.98118868]
[1746709647971,28.39014049,155.07,155.02,49.98118868]
[1746709648667,22.57190764,155.06,155.02,49.98118868]
[1746709649065,22.57190764,155.06,155.03,23.98118868]
[1746709649609,22.57190764,155.06,155.02,26.0]
[1746709649610,22.57190764,155.06,155.02,49.98118868]
[1746709649800,46.55309632,155.06,155.02,26.0]
[1746709649978,23.98118868,155.05,155.0,23.98118868]
[1746709650171,23.98118868,155.04,154.97,1.5778]
[1746709650386,23.98118868,155.03,154.98,23.98118868]
[1746709650701,22.5777319,155.02,154.98,23.98118868]
[1746709652598,22.5777319,155.02,154.99,23.98118868]
[1746709652799,16.12695136,155.02,154.99,23.98118868]
[1746709653878,16.12695136,155.02,154.96,42.24]
[1746709654089,16.12695136,155.02,154.99,23.98118868]
[1746709655699,16.12695136,155.02,155.0,23.98118868]
[1746709655910,6.45036444,155.03,155.01,23.98118868]
[1746709656109,22.56899664,155.08,155.02,23.98118868]
[1746709656320,22.56899664,155.08,155.05,23.98118868]
[1746709656983,22.56899664,155.08,155.06,23.98118868]
[1746709657198,4.41560326,155.07,155.06,23.98118868]
[1746709658110,10.86430384,155.07,155.06,23.98118868]
[1746709659102,26.9860553,155.07,155.01,108.8]
[1746709659305,23.98118868,155.06,155.01,23.98118868]
[1746709659505,23.98118868,155.04,154.99,106.78118868]
[1746709659698,23.98118868,155.04,154.96,17.8068]
[1746709660013,22.5777319,155.02,154.98,23.98118868]
[1746709660506,22.5777319,155.02,154.99,23.98118868]
[1746709660805,22.5777319,155.02,155.0,23.98118868]
[1746709661013,22.5777319,155.02,155.01,23.98118868]
[1746709661417,6.45078054,155.02,155.01,23.98118868]
[1746709661793,10.88270402,155.02,155.01,23.98118868]
[1746709664729,4.43192348,155.02,155.01,23.98118868]
[1746709665213,4.43192348,155.02,155.01,106.78118868]
[1746709667609,10.88270402,155.02,155.01,106.78118868]
[1746709668206,4.43192348,155.02,155.01,106.78118868]
[1746709668416,4.43192348,155.02,155.01,125.43083754]
[1746709668714,22.56756858,155.09,155.04,26.0]
[1746709668928,22.56756858,155.09,155.07,23.98118868]
[1746709669508,4.45027933,155.08,155.07,23.98118868]
[1746709670414,4.45027933,155.08,155.04,26.0]
[1746709670594,6.44870058,155.07,155.06,23.98118868]
[1746709671104,10.89897991,155.07,155.06,23.98118868]
[1746709671516,10.89897991,155.07,155.04,49.98118868]
[1746709671517,27.02073137,155.07,155.04,49.98118868]
[1746709672210,27.02073137,155.07,155.05,23.98118868]
[1746709672512,4.45027933,155.06,155.05,23.98118868]
[1746709672705,10.8993958,155.06,155.05,23.98118868]
[1746709677721,4.45027933,155.06,155.05,23.98118868]
[1746709683227,10.8993958,155.06,155.05,62.73118868]
[1746709683527,10.8993958,155.06,155.05,23.98118868]
[1746709684430,10.8993958,155.06,155.04,23.98118868]
[1746709684632,10.8993958,155.06,155.05,23.98118868]
[1746709685129,6.44911647,155.06,155.05,23.98118868]
[1746709686219,22.56608638,155.1,155.05,23.98118868]
[1746709686399,4.43831133,155.06,155.03,26.0]
[1746709686601,4.43831133,155.06,155.05,23.98118868]
[1746709687625,10.8874278,155.06,155.05,23.98118868]
[1746709689831,27.01021897,155.06,155.0,16.22]
[1746709690009,27.01021897,155.06,155.02,23.98118868]
[1746709690926,27.01021897,155.06,155.03,23.98118868]
[1746709690927,4.43831133,155.05,155.03,23.98118868]
[1746709691625,4.43831133,155.05,155.0,42.22]
[1746709691926,10.88825973,155.04,155.03,23.98118868]
[1746709693114,10.88825973,155.04,155.02,23.98118868]
[1746709693309,10.88825973,155.04,155.01,23.98118868]
[1746709693310,27.01313073,155.04,155.01,23.98118868]
[1746709693518,27.01313073,155.04,155.0,23.98118868]
[1746709693840,50.99431941,155.04,155.0,23.98118868]
[1746709694426,4.43831133,155.03,155.0,23.98118868]
[1746709695039,4.43831133,155.03,154.97,26.0]
[1746709695258,6.45119669,155.01,155.0,23.98118868]
[1746709696433,10.88950802,155.01,155.0,23.98118868]
[1746709698439,22.5748194,155.04,155.0,23.98118868]
[1746709698740,4.44355346,155.01,154.97,26.0]
[1746709699536,4.44355346,155.0,154.97,26.0]
[1746709699724,4.44355346,155.0,154.99,14.98476384]
[1746709700941,6.45145909,155.01,154.99,14.98476384]
[1746709701146,6.45145909,155.01,154.98,14.98476384]
[1746709701147,6.45145909,155.01,155.0,40.98476384]
[1746709701721,22.57045204,155.07,155.0,40.98476384]
[1746709701936,37.55521588,155.07,155.02,14.98476384]
[1746709702541,22.57045204,155.07,155.02,14.98476384]
[1746709702838,37.55521588,155.07,155.03,14.98476384]
[1746709703011,4.44646475,155.06,155.03,14.98476384]
[1746709703834,6.4495324,155.05,155.04,14.98476384]
[1746709704427,4.44646475,155.05,155.04,14.98476384]
[1746709705430,6.44874557,155.07,155.06,26.0]
[1746709705740,10.89921312,155.07,155.06,49.95648839]
[1746709708645,6.44874557,155.07,155.06,49.95648839]
[1746709709145,4.38304413,155.07,155.06,49.95648839]
[1746709710046,22.56684215,155.1,155.06,49.95648839]
[1746709711050,6.44828475,155.08,155.06,49.95648839]
[1746709711347,22.56899664,155.08,155.05,23.95648839]
[1746709711531,46.52548503,155.08,155.02,16.2]
[1746709711729,46.52548503,155.08,155.04,23.95648839]
[1746709713246,78.76690881,155.08,155.03,26.0]
[1746709713434,23.95648839,155.07,155.0,82.8]
[1746709713639,23.95648839,155.07,155.03,23.95648839]
[1746709713953,4.38151219,155.06,155.03,23.95648839]
[1746709714329,6.4495324,155.05,155.01,26.0]
[1746709714528,6.4495324,155.05,155.03,23.95648839]
[1746709714941,4.38151219,155.04,155.03,23.95648839]
[1746709715435,6.45036444,155.03,155.02,26.0]
[1746709715634,6.45036444,155.03,155.02,49.95648839]
[1746709715952,10.83187663,155.03,155.02,49.95648839]
[1746709716153,10.83187663,155.03,155.02,26.0]
[1746709716348,10.83187663,155.03,155.02,49.95648839]
[1746709716540,6.45036444,155.03,155.02,49.95648839]
[1746709717148,10.8282992,155.03,155.02,49.95648839]
[1746709718346,4.37793476,155.03,155.02,49.95648839]
[1746709719225,4.37793476,155.03,155.02,68.60613725]
[1746709719431,4.37793476,155.03,155.02,196.60691779]
[1746709719750,6.44913811,155.06,155.05,26.0]
[1746709719941,16.11864278,155.1,155.06,26.0]
[1746709720150,16.11864278,155.1,155.07,23.95648839]
[1746709720452,4.36629124,155.09,155.07,23.95648839]
[1746709721466,4.36629124,155.09,155.08,23.95648839]
[1746709721668,16.11864278,155.1,155.08,23.95648839]
[1746709721827,16.11864278,155.1,155.09,23.95648839]
[1746709722643,20.47574423,155.1,155.09,23.95648839]
[1746709722852,4.35710145,155.1,155.09,23.95648839]
[1746709723862,10.8045547,155.1,155.09,23.95648839]
[1746709725662,4.35710145,155.1,155.09,49.95648839]
[1746709725956,4.35710145,155.1,155.09,40.96292519]
[1746709726159,4.35710145,155.1,155.09,109.61257405]
[1746709728539,6.44674513,155.12,155.11,26.0]
[1746709728741,6.44674513,155.12,155.11,40.96292519]
[1746709730146,6.44537544,155.15,155.11,40.96292519]
[1746709730360,6.44537544,155.15,155.14,14.96292519]
[1746709730968,6.44371415,155.19,155.14,14.96292519]
[1746709731262,6.44371415,155.19,155.17,14.96292519]
[1746709731765,4.34101533,155.18,155.17,14.96292519]
[1746709732167,10.78514472,155.18,155.17,14.96292519]
[1746709732364,10.78514472,155.18,155.12,18.64964886]
[1746709732570,10.78514472,155.18,155.16,14.96292519]
[1746709732745,26.89546821,155.18,155.16,14.96292519]
[1746709733059,4.34101533,155.17,155.16,14.96292519]
[1746709734364,10.78556002,155.17,155.16,14.96292519]
[1746709734967,6.44454469,155.17,155.16,14.96292519]
[1746709737264,16.11032349,155.18,155.16,14.96292519]
[1746709738863,16.11032349,155.18,155.13,121.55]
[1746709739046,16.11032349,155.18,155.15,14.96292519]
[1746709739378,16.11032349,155.18,155.16,14.96292519]
[1746709740370,16.11032349,155.18,155.13,121.55]
[1746709740566,16.11032349,155.18,155.15,14.96292519]
[1746709740873,4.323425,155.17,155.15,14.96292519]
[1746709741248,6.44496004,155.16,155.15,14.96292519]
[1746709742061,22.55736014,155.16,155.13,14.96292519]
[1746709742451,22.55736014,155.16,155.14,14.96292519]
[1746709742649,22.55736014,155.16,155.12,38.75]
[1746709742863,22.55736014,155.16,155.14,14.96292519]
[1746709743072,22.55736014,155.16,155.12,14.96292519]
[1746709743452,22.55736014,155.16,155.13,14.96292519]
[1746709743652,22.55736014,155.16,155.11,108.8]
[1746709743867,22.55736014,155.16,155.13,14.96292519]
[1746709744072,14.96292519,155.15,155.1,99.0]
[1746709744381,69.74508553,155.16,155.11,14.96292519]
[1746709745784,54.78216034,155.16,155.12,14.96292519]
[1746709746080,69.74508553,155.16,155.12,14.96292519]
[1746709746464,4.33312525,155.15,155.12,14.96292519]
[1746709747389,4.33312525,155.15,155.13,14.96292519]
[1746709747557,4.33312525,155.14,155.13,14.96292519]
[1746709747879,10.77891614,155.14,155.13,14.96292519]
[1746709749379,26.89339338,155.14,155.12,14.96292519]
[1746709749564,4.33312525,155.13,155.12,14.96292519]
[1746709750467,10.77933165,155.13,155.12,14.96292519]
[1746709752077,26.89484766,155.13,155.09,147.55]
[1746709752279,26.89484766,155.13,155.12,14.96292519]
[1746709757900,26.89484766,155.13,155.11,14.96292519]
[1746709758199,26.89484766,155.13,155.09,147.55]
[1746709758405,26.89484766,155.13,155.1,14.96292519]
[1746709758700,4.33312525,155.12,155.1,14.96292519]
[1746709758879,4.33312525,155.12,155.08,108.8]
[1746709759081,4.33312525,155.12,155.09,14.96292519]
[1746709759700,19.29605044,155.11,155.02,157.92234729]
[1746709759979,19.29605044,155.11,155.06,14.96292519]
[1746709760484,26.89921163,155.1,155.06,14.96292519]
[1746709761603,4.33312525,155.09,155.06,14.96292519]
[1746709762007,4.33312525,155.09,155.07,14.96292519]
[1746709762680,4.33312525,155.08,155.07,26.0]
[1746709762880,4.33312525,155.08,155.07,123.76292519]
[1746709763115,4.33312525,155.08,155.07,138.72585038]
[1746709763695,22.56317689,155.12,155.07,123.76292519]
[1746709763898,22.56317689,155.12,155.09,14.96292519]
[1746709764686,16.11655492,155.12,155.09,14.96292519]
[1746709765312,16.11655492,155.12,155.07,108.8]
[1746709765313,16.11655492,155.12,155.07,82.8]
[1746709765478,4.36588706,155.11,155.08,14.96292519]
[1746709766814,22.56317689,155.12,155.08,14.96292519]
[1746709767587,4.36578472,155.11,155.08,14.96292519]
[1746709768114,22.56608638,155.1,155.07,97.76292519]
[1746709769011,22.56608638,155.1,155.07,14.96292519]
[1746709769322,4.36592039,155.09,155.07,14.96292519]
[1746709769614,4.36592039,155.09,155.05,26.0]
[1746709769909,4.36592039,155.09,155.06,14.96292519]
[1746709770604,22.56608638,155.1,155.06,14.96292519]
[1746709770913,22.56608638,155.1,155.05,26.0]
[1746709771078,4.37146057,155.09,155.06,14.96292519]
[1746709771411,4.37146057,155.09,155.07,14.96292519]
[1746709771901,3.87146057,155.09,155.07,14.96292519]
[1746709772108,22.56608638,155.1,155.07,14.96292519]
[1746709772481,22.56608638,155.1,155.08,14.96292519]
[1746709772899,22.56317689,155.12,155.08,14.96292519]
[1746709773911,37.52610208,155.12,155.08,14.96292519]
[1746709774711,22.56317689,155.12,155.09,14.96292519]
[1746709774897,16.11655492,155.12,155.11,14.96292519]
[1746709775099,6.4462064,155.13,155.11,14.96292519]
[1746709775294,6.4462064,155.13,155.12,14.96292519]
[1746709776506,22.55694282,155.17,155.12,14.96292519]
[1746709776808,22.55694282,155.17,155.13,14.96292519]
[1746709777399,37.51986801,155.17,155.13,14.96292519]
[1746709777604,37.51986801,155.17,155.12,14.96292519]
[1746709778002,69.74259147,155.17,155.08,189.3215]
[1746709778319,14.96292519,155.16,155.11,14.96292519]
[1746709779612,14.96292519,155.16,155.12,14.96292519]
[1746709779816,54.77966628,155.17,155.12,14.96292519]
[1746709779817,69.74259147,155.17,155.12,14.96292519]
[1746709780193,14.96292519,155.16,155.11,14.96292519]
[1746709781493,14.96292519,155.14,155.08,82.8]
[1746709781698,14.96292519,155.12,155.05,82.8]
[1746709781904,14.96292519,155.1,155.04,16.16]
[1746709782099,37.5304666,155.09,155.04,14.96292519]
[1746709782425,22.56754141,155.09,155.05,14.96292519]
[1746709783026,22.56754141,155.09,155.03,38.73]
[1746709783232,22.56754141,155.09,155.04,14.96292519]
[1746709783808,6.44870058,155.07,155.04,14.96292519]
[1746709784928,6.4495324,155.05,155.04,14.96292519]
[1746709786022,22.57000045,155.08,155.0,106.8326]
[1746709786327,14.96292519,155.07,155.02,14.96292519]
[1746709786931,37.53292564,155.08,155.03,14.96292519]
[1746709787632,4.36804571,155.07,155.03,14.96292519]
[1746709788431,10.81716218,155.06,155.03,14.96292519]
[1746709789721,6.4499484,155.04,155.03,14.96292519]
[1746709790340,10.81799411,155.04,155.03,14.96292519]
[1746709793548,4.36804571,155.04,155.03,14.96292519]
[1746709793917,6.44967045,155.05,155.03,14.96292519]
[1746709794140,6.44967045,155.05,155.01,26.0]
[1746709794141,6.44967045,155.05,155.04,14.96292519]
[1746709794345,16.1186453,155.1,155.04,14.96292519]
[1746709794546,16.1186453,155.1,155.07,14.96292519]
[1746709794793,16.1186453,155.1,155.02,132.8]
[1746709794794,4.36375848,155.09,155.08,14.96292519]
[1746709795248,4.36375848,155.09,155.07,14.96292519]
[1746709796031,6.44828475,155.08,155.07,14.96292519]
[1746709800263,10.81204323,155.08,155.07,14.96292519]
[1746709802278,4.36375848,155.08,155.07,14.96292519]
[1746709803556,6.44758673,155.1,155.07,14.96292519]
[1746709803757,6.44758673,155.1,155.09,14.96292519]
[1746709804656,6.44758673,155.1,155.05,147.53]
[1746709804863,6.44758673,155.1,155.07,14.96292519]
[1746709805158,22.56463154,155.11,155.05,147.53]
[1746709805458,22.56463154,155.11,155.07,14.96292519]
[1746709805644,4.36299415,155.1,155.07,14.96292519]
[1746709806049,16.56342519,155.09,155.03,82.8]
[1746709806250,1.6005,155.09,155.06,14.96292519]
[1746709806458,1.6005,155.09,155.04,26.0]
[1746709806652,1.6005,155.09,155.06,14.96292519]
[1746709806960,4.36299415,155.08,155.06,14.96292519]
[1746709807141,6.44870058,155.07,155.04,26.0]
[1746709807344,6.44870058,155.07,155.05,14.96292519]
[1746709807754,4.36299415,155.06,155.05,14.96292519]
[1746709808474,10.81211062,155.06,155.05,14.96292519]
[1746709808967,4.36299415,155.06,155.05,14.96292519]
[1746709809370,4.36299415,155.06,155.05,47.41245759]
[1746709809553,4.36299415,155.09,155.05,47.41245759]
[1746709809792,10.81092633,155.09,155.07,14.96292519]
[1746709810145,10.81092633,155.09,155.05,108.8]
[1746709810344,10.81092633,155.09,155.06,14.96292519]
[1746709810876,10.81144329,155.08,155.06,14.96292519]
[1746709811462,10.81144329,155.08,155.05,123.76292519]
[1746709811872,4.36299415,155.07,155.05,123.76292519]
[1746709812571,6.44911647,155.06,155.05,123.76292519]
[1746709812877,10.81211062,155.06,155.05,40.96292519]
[1746709813475,4.36299415,155.06,155.05,40.96292519]
[1746709813865,4.36299415,155.11,155.08,26.0]
[1746709814062,4.36299415,155.11,155.1,14.96292519]
[1746709814274,10.81003173,155.11,155.1,14.96292519]
[1746709824179,4.36299415,155.11,155.1,14.96292519]
[1746709824588,10.81003173,155.11,155.1,14.96292519]
[1746709825253,4.36299415,155.11,155.1,40.96292519]
[1746709825461,4.36299415,155.11,155.1,97.76292519]
[1746709825854,10.81003173,155.11,155.1,123.76292519]
[1746709827483,10.81003173,155.11,155.1,162.49292519]
[1746709827686,10.81003173,155.11,155.1,123.76292519]
[1746709828884,10.81003173,155.11,155.1,14.96292519]
[1746709830882,10.81003173,155.11,155.08,158.8]
[1746709831055,10.81003173,155.11,155.09,14.96292519]
[1746709831258,6.44703758,155.11,155.09,14.96292519]
[1746709831780,37.52755673,155.11,155.08,82.8]
[1746709832191,22.56463154,155.11,155.08,82.8]
[1746709833385,4.36266272,155.1,155.08,82.8]
[1746709833583,6.44786897,155.09,155.08,82.8]
[1746709833788,6.44786897,155.09,155.07,14.96292519]
[1746709834090,22.56754141,155.09,155.06,40.96292519]
[1746709834462,4.36266272,155.08,155.06,40.96292519]
[1746709834980,1.85143562,155.08,155.04,14.96292519]
[1746709835285,37.5304666,155.09,155.04,14.96292519]
[1746709835479,22.57045204,155.07,155.03,123.76292519]
[1746709835682,22.57045204,155.07,155.03,108.8]
[1746709835883,22.57045204,155.07,155.03,123.76292519]
[1746709836390,22.57045204,155.07,155.03,97.76292519]
[1746709836583,37.53337723,155.07,155.03,82.8]
[1746709837189,14.96292519,155.06,155.01,14.96292519]
[1746709837794,22.57336342,155.05,155.01,14.96292519]
[1746709838702,22.57336342,155.05,155.01,26.0]
[1746709838997,22.57336342,155.05,155.01,40.96292519]
[1746709839892,22.57336342,155.05,155.02,14.96292519]
[1746709840498,16.12383102,155.05,155.02,14.96292519]
[1746709845397,6.44911647,155.06,155.03,14.96292519]
[1746709846283,21.41204166,155.06,155.02,14.96292519]
[1746709847195,37.53483283,155.06,155.02,14.96292519]
[1746709847397,4.3368829,155.05,155.03,14.96292519]
[1746709847574,4.3368829,155.05,155.01,14.96292519]
[1746709848296,4.3368829,155.04,155.01,14.96292519]
[1746709848600,6.45036444,155.03,155.02,14.96292519]
[1746709849880,6.45036444,155.03,155.0,82.8]
[1746709850093,6.45036444,155.03,155.02,14.96292519]
[1746709850598,16.12508473,155.04,155.0,82.8]